fUSD/lending_fUSD_20240803
["ID","MTS","AMOUNT","RATE_DAILY","PERIOD"]
[333964892,1722651032823,-6212.0,0.0001589,2]
[333964893,1722651032833,-203.0,0.0001591,2]
[333964894,1722651032843,-300.0,0.0001591,2]
[333964895,1722651032852,-650.0,0.00016,2]
[333964896,1722651032861,-266.6,0.00016107,2]
[333964897,1722651032870,-540.0,0.00016111,2]
[333964898,1722651032880,-266.8662,0.00016138,2]
[333964899,1722651032889,-203.0,0.0001623,2]
[333964900,1722651032898,-300.0,0.0001623,2]
[333964901,1722651032907,-241.1507,0.00016236,2]
[333964902,1722651032916,-1033.2631,0.00016236,2]
[333964903,1722651032925,-500.0,0.00016238,2]
[333964904,1722651032934,-1000.0,0.00016338,2]
[333964905,1722651032943,-5701.7366,0.00016338,2]
[333964906,1722651032952,-7500.0,0.00016338,2]
[333964907,1722651032963,-1012.145808,0.00016428,2]
[333964908,1722651032973,-153.70725901,0.00016435,2]
[333964909,1722651032983,-500.0,0.00016438,2]
[333964910,1722651032992,-500.0,0.00016438,2]
[333964911,1722651033001,-626.12,0.00016438,2]
[333964912,1722651033012,-500.0,0.00016438,2]
[333964913,1722651033022,-500.0,0.00016438,2]
[333964914,1722651033032,-500.0,0.00016438,2]
[333964915,1722651033041,-500.0,0.00016438,2]
[333964916,1722651033051,-500.0,0.00016438,2]
[333964917,1722651033061,-500.0,0.00016438,2]
[333964918,1722651033070,-500.0,0.00016438,2]
[333964919,1722651033081,-500.0,0.00016438,2]
[333964920,1722651033091,-500.0,0.00016438,2]
[333964921,1722651033101,-500.0,0.00016438,2]
[333964922,1722651033110,-500.0,0.00016438,2]
[333964923,1722651033120,-500.0,0.00016438,2]
[333964924,1722651033129,-574.11,0.00016438,2]
[333964925,1722651033139,-500.0,0.00016438,2]
[333964926,1722651033149,-500.0,0.00016438,2]
[333964927,1722651033159,-500.0,0.00016438,2]
[333964928,1722651033169,-500.0,0.00016438,2]
[333964929,1722651033179,-500.0,0.00016438,2]
[333964930,1722651033190,-758.37,0.00016438,2]
[333964931,1722651033199,-500.0,0.00016438,2]
[333964932,1722651033211,-500.0,0.00016438,2]
[333964933,1722651033222,-500.60073354,0.00016438,2]
[333964934,1722651033232,-500.0,0.00016438,2]
[333964935,1722651033242,-500.0,0.00016438,2]
[333964936,1722651033252,-500.0,0.00016438,2]
[333964937,1722651033262,-500.0,0.00016438,2]
[333964938,1722651033271,-582.99,0.00016438,2]
[333964939,1722651033282,-500.0,0.00016438,2]
[333964940,1722651033291,-500.0,0.00016438,2]
[333964941,1722651033301,-500.0,0.00016438,2]
[333964942,1722651033311,-500.0,0.00016438,2]
[333964943,1722651033320,-500.0,0.00016438,2]
[333964944,1722651033329,-500.0,0.00016438,2]
[333964945,1722651033339,-500.0,0.00016438,2]
[333964946,1722651033349,-500.0,0.00016438,2]
[333964947,1722651033358,-500.0,0.00016438,2]
[333964948,1722651033368,-843.93,0.00016438,2]
[333964949,1722651033378,-500.0,0.00016438,2]
[333964950,1722651033387,-500.0,0.00016438,2]
[333964951,1722651033397,-500.0,0.00016438,2]
[333964952,1722651033407,-603.02,0.00016438,2]
[333964953,1722651033416,-500.0,0.00016438,2]
[333964954,1722651033426,-996.51,0.00016438,2]
[333964955,1722651033436,-646.27,0.00016438,2]
[333964956,1722651033445,-500.0,0.00016438,2]
[333964957,1722651033455,-806.2,0.00016438,2]
[333964958,1722651033465,-1267.92,0.00016438,2]
[333964959,1722651033475,-500.0,0.00016438,2]
[333964960,1722651033484,-528.59,0.00016438,2]
[333964961,1722651033494,-500.0,0.00016438,2]
[333964962,1722651033504,-500.0,0.00016438,2]
[333964963,1722651033513,-500.0,0.00016438,2]
[333964964,1722651033523,-500.0,0.00016438,2]
[333964965,1722651033532,-872.86,0.00016438,2]
[333964966,1722651033541,-500.0,0.00016438,2]
[333964967,1722651033551,-924.27,0.00016438,2]
[333964968,1722651033560,-518.62,0.00016438,2]
[333964969,1722651033570,-500.0,0.00016438,2]
[333964970,1722651033579,-500.0,0.00016438,2]
[333964971,1722651033589,-544.52,0.00016438,2]
[333964972,1722651033598,-500.0,0.00016438,2]
[333964973,1722651033607,-500.0,0.00016438,2]
[333964974,1722651033617,-500.0,0.00016438,2]
[333964975,1722651033627,-500.0,0.00016438,2]
[333964976,1722651033636,-500.0,0.00016438,2]
[333964977,1722651033646,-1105.48,0.00016438,2]
[333964978,1722651033655,-539.48,0.00016438,2]
[333964979,1722651033665,-500.0,0.00016438,2]
[333964980,1722651033675,-941.91,0.00016438,2]
[333964981,1722651033684,-500.0,0.00016438,2]
[333964982,1722651033694,-500.0,0.00016438,2]
[333964983,1722651033703,-500.0,0.00016438,2]
[333964984,1722651033714,-500.0,0.00016438,2]
[333964985,1722651033724,-625.91,0.00016438,2]
[333964986,1722651033734,-500.0,0.00016438,2]
[333964987,1722651033744,-531.34,0.00016438,2]
[333964988,1722651033758,-500.0,0.00016438,2]
[333964989,1722651033775,-500.0,0.00016438,2]
[333964990,1722651033785,-500.0,0.00016438,2]
[333964991,1722651033795,-500.0,0.00016438,2]
[333964992,1722651033804,-650.56,0.00016438,2]
[333964993,1722651033814,-500.0,0.00016438,2]
[333964994,1722651033824,-500.0,0.00016438,2]
[333964995,1722651033833,-901.7,0.00016438,2]
[333964996,1722651033844,-552.17,0.00016438,2]
[333964997,1722651033853,-845.42,0.00016438,2]
[333964998,1722651033863,-500.0,0.00016438,2]
[333964999,1722651033873,-500.0,0.00016438,2]
[333965000,1722651033883,-993.64,0.00016438,2]
[333965001,1722651033892,-500.0,0.00016438,2]
[333965002,1722651033903,-615.75,0.00016438,2]
[333965003,1722651033912,-500.0,0.00016438,2]
[333965004,1722651033922,-500.0,0.00016438,2]
[333965005,1722651033932,-500.0,0.00016438,2]
[333965006,1722651033941,-500.0,0.00016438,2]
[333965007,1722651033951,-500.0,0.00016438,2]
[333965008,1722651033961,-500.0,0.00016438,2]
[333965009,1722651033971,-789.97,0.00016438,2]
[333965010,1722651033981,-741.33,0.00016438,2]
[333965011,1722651033990,-500.0,0.00016438,2]
[333965012,1722651034000,-500.0,0.00016438,2]
[333965013,1722651034009,-500.0,0.00016438,2]
[333965014,1722651034019,-500.0,0.00016438,2]
[333965015,1722651034028,-500.0,0.00016438,2]
[333965016,1722651034038,-500.0,0.00016438,2]
[333965017,1722651034047,-500.0,0.00016438,2]
[333965018,1722651034057,-500.0,0.00016438,2]
[333965019,1722651034066,-912.85,0.00016438,2]
[333965020,1722651034076,-500.0,0.00016438,2]
[333965021,1722651034085,-1013.37,0.00016438,2]
[333965022,1722651034096,-500.0,0.00016438,2]
[333965023,1722651034106,-586.68,0.00016438,2]
[333965024,1722651034115,-1181.36,0.00016438,2]
[333965025,1722651034126,-603.55,0.00016438,2]
[333965026,1722651034136,-513.24,0.00016438,2]
[333965027,1722651034145,-500.0,0.00016438,2]
[333965028,1722651034155,-845.25,0.00016438,2]
[333965029,1722651034165,-500.0,0.00016438,2]
[333965030,1722651034174,-500.0,0.00016438,2]
[333965031,1722651034183,-963.75,0.00016438,2]
[333965032,1722651034193,-500.0,0.00016438,2]
[333965033,1722651034202,-500.0,0.00016438,2]
[333965034,1722651034212,-500.0,0.00016438,2]
[333965035,1722651034221,-500.0,0.00016438,2]
[333965036,1722651034231,-500.0,0.00016438,2]
[333965037,1722651034240,-742.08,0.00016438,2]
[333965038,1722651034250,-500.0,0.00016438,2]
[333965039,1722651034259,-500.0,0.00016438,2]
[333965040,1722651034269,-591.66,0.00016438,2]
[333965041,1722651034279,-1305.01,0.00016438,2]
[333965042,1722651034289,-677.98,0.00016438,2]
[333965043,1722651034669,-588.58,0.00016438,2]
[333965044,1722651034680,-1249.82,0.00016438,2]
[333965045,1722651034690,-500.0,0.00016438,2]
[333965046,1722651034699,-500.0,0.00016438,2]
[333965047,1722651034708,-500.0,0.00016438,2]
[333965048,1722651034718,-500.0,0.00016438,2]
[333965049,1722651034728,-1077.22,0.00016438,2]
[333965050,1722651034737,-500.0,0.00016438,2]
[333965051,1722651034747,-500.0,0.00016438,2]
[333965052,1722651034760,-557.62,0.00016438,2]
[333965053,1722651034770,-500.0,0.00016438,2]
[333965054,1722651034780,-550.88,0.00016438,2]
[333965055,1722651034790,-1061.37,0.00016438,2]
[333965056,1722651034799,-580.68,0.00016438,2]
[333965057,1722651034810,-500.0,0.00016438,2]
[333965058,1722651034820,-551.86,0.00016438,2]
[333965059,1722651034830,-500.0,0.00016438,2]
[333965060,1722651034840,-500.0,0.00016438,2]
[333965061,1722651034850,-651.09,0.00016438,2]
[333965062,1722651034860,-646.73,0.00016438,2]
[333965063,1722651034870,-1295.65,0.00016438,2]
[333965064,1722651034880,-500.0,0.00016438,2]
[333965065,1722651034890,-500.0,0.00016438,2]
[333965066,1722651034900,-767.14,0.00016438,2]
[333965067,1722651034910,-1154.21,0.00016438,2]
[333965068,1722651034920,-507.6,0.00016438,2]
[333965069,1722651034930,-673.72,0.00016438,2]
[333965070,1722651034939,-500.0,0.00016438,2]
[333965071,1722651034949,-500.0,0.00016438,2]
[333965072,1722651034959,-500.0,0.00016438,2]
[333965073,1722651034976,-500.0,0.00016438,2]
[333965074,1722651034986,-627.81,0.00016438,2]
[333965075,1722651034998,-500.0,0.00016438,2]
[333965076,1722651035008,-500.0,0.00016438,2]
[333965077,1722651035018,-500.0,0.00016438,2]
[333965078,1722651035028,-500.0,0.00016438,2]
[333965079,1722651035037,-500.0,0.00016438,2]
[333965080,1722651035047,-500.0,0.00016438,2]
[333965081,1722651035057,-1211.48,0.00016438,2]
[333965082,1722651035066,-500.0,0.00016438,2]
[333965083,1722651035076,-500.0,0.00016438,2]
[333965084,1722651035086,-512.86,0.00016438,2]
[333965085,1722651035095,-501.13445747,0.00016438,2]
[333965086,1722651035106,-500.0,0.00016438,2]
[333965087,1722651035115,-500.0,0.00016438,2]
[333965088,1722651035125,-500.0,0.00016438,2]
[333965089,1722651035135,-500.0,0.00016438,2]
[333965090,1722651035144,-500.0,0.00016438,2]
[333965091,1722651035154,-501.13514878,0.00016438,2]
[333965092,1722651035164,-1399.3,0.00016438,2]
[333965093,1722651035173,-1069.49,0.00016438,2]
[333965094,1722651035183,-500.0,0.00016438,2]
[333965095,1722651035193,-500.0,0.00016438,2]
[333965096,1722651035203,-500.0,0.00016438,2]
[333965097,1722651035212,-500.0,0.00016438,2]
[333965098,1722651035222,-500.0,0.00016438,2]
[333965099,1722651035232,-482.28081886,0.00016438,2]
[333965100,1722651035241,-1261.38,0.00016438,2]
[333965101,1722651035250,-500.0,0.00016438,2]
[333965102,1722651035260,-944.05,0.00016438,2]
[333965103,1722651035269,-1218.4,0.00016438,2]
[333965104,1722651035278,-500.0,0.00016438,2]
[333965105,1722651035288,-500.0,0.00016438,2]
[333965106,1722651035297,-777.91,0.00016438,2]
[333965107,1722651035307,-500.0,0.00016438,2]
[333965108,1722651035317,-500.0,0.00016438,2]
[333965109,1722651035326,-500.0,0.00016438,2]
[333965110,1722651035335,-500.0,0.00016438,2]
[333965111,1722651035344,-500.0,0.00016438,2]
[333965112,1722651035355,-500.0,0.00016438,2]
[333965113,1722651035364,-571.24,0.00016438,2]
[333965114,1722651035374,-500.0,0.00016438,2]
[333965115,1722651035383,-579.3,0.00016438,2]
[333965116,1722651035393,-500.0,0.00016438,2]
[333965117,1722651035403,-1024.5,0.00016438,2]
[333965118,1722651035413,-500.0,0.00016438,2]
[333965119,1722651035423,-877.79,0.00016438,2]
[333965120,1722651035434,-501.12838698,0.00016438,2]
[333965121,1722651035444,-776.25,0.00016438,2]
[333965122,1722651035454,-500.0,0.00016438,2]
[333965123,1722651035467,-500.0,0.00016438,2]
[333965124,1722651035477,-500.0,0.00016438,2]
[333965125,1722651035486,-505.19,0.00016438,2]
[333965126,1722651035495,-500.0,0.00016438,2]
[333965127,1722651035505,-500.0,0.00016438,2]
[333965128,1722651035514,-500.0,0.00016438,2]
[333965129,1722651035523,-500.0,0.00016438,2]
[333965130,1722651035533,-613.45,0.00016438,2]
[333965131,1722651035542,-500.0,0.00016438,2]
[333965132,1722651035552,-500.0,0.00016438,2]
[333965133,1722651035561,-500.0,0.00016438,2]
[333965134,1722651035571,-796.47,0.00016438,2]
[333965135,1722651035580,-500.0,0.00016438,2]
[333965136,1722651035590,-502.92,0.00016438,2]
[333965137,1722651035599,-408.26488352,0.00016438,2]
[333965138,1722651035608,-500.0,0.00016438,2]
[333965139,1722651035618,-1034.64,0.00016438,2]
[333965140,1722651035629,-1557.68,0.00016438,2]
[333965141,1722651035638,-785.43,0.00016438,2]
[333965142,1722651035648,-298.32961004,0.00016438,2]
[333965143,1722651035658,-1344.34,0.00016438,2]
[333965144,1722651035667,-722.02,0.00016438,2]
[333965145,1722651035676,-500.0,0.00016438,2]
[333965146,1722651035686,-500.0,0.00016438,2]
[333965147,1722651035695,-1325.29,0.00016438,2]
[333965148,1722651035704,-500.0,0.00016438,2]
[333965149,1722651035714,-500.0,0.00016438,2]
[333965150,1722651035723,-500.0,0.00016438,2]
[333965151,1722651035733,-500.0,0.00016438,2]
[333965152,1722651035742,-500.0,0.00016438,2]
[333965153,1722651035752,-1277.95,0.00016438,2]
[333965154,1722651035766,-500.0,0.00016438,2]
[333965155,1722651035775,-1525.95,0.00016438,2]
[333965156,1722651035784,-500.0,0.00016438,2]
[333965157,1722651035794,-500.0,0.00016438,2]
[333965158,1722651035804,-500.0,0.00016438,2]
[333965159,1722651035813,-528.47,0.00016438,2]
[333965160,1722651035823,-550.62680934,0.00016438,2]
[333965161,1722651035833,-500.0,0.00016438,2]
[333965162,1722651035842,-500.89631267,0.00016438,2]
[333965163,1722651035851,-1097.79,0.00016438,2]
[333965164,1722651035861,-857.17,0.00016438,2]
[333965165,1722651035871,-500.0,0.00016438,2]
[333965166,1722651035881,-810.13,0.00016438,2]
[333965167,1722651035890,-500.0,0.00016438,2]
[333965168,1722651035899,-500.0,0.00016438,2]
[333965169,1722651035909,-500.0,0.00016438,2]
[333965170,1722651035918,-504.63,0.00016438,2]
[333965171,1722651035928,-500.0,0.00016438,2]
[333965172,1722651035938,-500.0,0.00016438,2]
[333965173,1722651035947,-500.0,0.00016438,2]
[333965174,1722651035957,-500.0,0.00016438,2]
[333965175,1722651035968,-500.0,0.00016438,2]
[333965176,1722651035977,-1756.89,0.00016438,2]
[333965177,1722651035987,-500.0,0.00016438,2]
[333965178,1722651035996,-500.0,0.00016438,2]
[333965179,1722651036005,-500.0,0.00016438,2]
[333965180,1722651036015,-500.0,0.00016438,2]
[333965181,1722651036024,-643.98285689,0.00016438,2]
[333965182,1722651036034,-993.34,0.00016438,2]
[333965183,1722651036043,-500.0,0.00016438,2]
[333965184,1722651036053,-500.0,0.00016438,2]
[333965185,1722651036062,-1211.32,0.00016438,2]
[333965186,1722651036072,-500.0,0.00016438,2]
[333965187,1722651036082,-1084.87,0.00016438,2]
[333965188,1722651036091,-500.0,0.00016438,2]
[333965189,1722651036102,-947.53,0.00016438,2]
[333965190,1722651036113,-879.82,0.00016438,2]
[333965191,1722651036123,-705.8,0.00016438,2]
[333965192,1722651036132,-500.0,0.00016438,2]
[333965193,1722651036142,-500.0,0.00016438,2]
[333965194,1722651036153,-1354.25,0.00016438,2]
[333965195,1722651036163,-784.1,0.00016438,2]
[333965196,1722651036172,-698.62,0.00016438,2]
[333965197,1722651036181,-500.0,0.00016438,2]
[333965198,1722651036191,-505.51028893,0.00016438,2]
[333965199,1722651036201,-707.56,0.00016438,2]
[333965200,1722651036212,-500.0,0.00016438,2]
[333965201,1722651036222,-946.22,0.00016438,2]
[333965202,1722651036232,-927.25,0.00016438,2]
[333965203,1722651036242,-500.0,0.00016438,2]
[333965204,1722651036252,-657.15,0.00016438,2]
[333965205,1722651036263,-500.0,0.00016438,2]
[333965206,1722651036273,-858.16,0.00016438,2]
[333965207,1722651036283,-500.0,0.00016438,2]
[333965208,1722651036292,-500.0,0.00016438,2]
[333965209,1722651036302,-961.52,0.00016438,2]
[333965210,1722651036311,-500.0,0.00016438,2]
[333965211,1722651036322,-500.0,0.00016438,2]
[333965212,1722651036331,-848.5,0.00016438,2]
[333965213,1722651036342,-500.0,0.00016438,2]
[333965214,1722651036351,-1026.21,0.00016438,2]
[333965215,1722651036360,-812.5,0.00016438,2]
[333965216,1722651036372,-277.45807478,0.00016438,2]
[333965217,1722651036382,-292.47526942,0.00016438,2]
[333965218,1722651036392,-500.0,0.00016438,2]
[333965219,1722651036402,-500.0,0.00016438,2]
[333965220,1722651036411,-500.0,0.00016438,2]
[333965221,1722651036420,-584.29,0.00016438,2]
[333965222,1722651036430,-500.0,0.00016438,2]
[333965223,1722651036440,-861.53,0.00016438,2]
[333965224,1722651036450,-500.0,0.00016438,2]
[333965225,1722651036459,-500.0,0.00016438,2]
[333965226,1722651036468,-500.0,0.00016438,2]
[333965227,1722651036478,-500.0,0.00016438,2]
[333965228,1722651036487,-500.0,0.00016438,2]
[333965229,1722651036497,-625.23,0.00016438,2]
[333965230,1722651036507,-500.0,0.00016438,2]
[333965231,1722651036516,-500.0,0.00016438,2]
[333965232,1722651036526,-959.41,0.00016438,2]
[333965233,1722651036536,-500.0,0.00016438,2]
[333965234,1722651036546,-500.0,0.00016438,2]
[333965235,1722651036555,-1024.08,0.00016438,2]
[333965236,1722651036565,-1192.68,0.00016438,2]
[333965237,1722651036574,-885.45,0.00016438,2]
[333965238,1722651036584,-612.63,0.00016438,2]
[333965239,1722651036593,-1070.93,0.00016438,2]
[333965240,1722651036603,-500.0,0.00016438,2]
[333965241,1722651036612,-791.32,0.00016438,2]
[333965242,1722651036622,-1340.04,0.00016438,2]
[333965243,1722651036631,-1107.77,0.00016438,2]
[333965244,1722651036641,-500.0,0.00016438,2]
[333965245,1722651036651,-509.26,0.00016438,2]
[333965246,1722651036661,-801.03,0.00016438,2]
[333965247,1722651036670,-500.0,0.00016438,2]
[333965248,1722651036680,-500.0,0.00016438,2]
[333965249,1722651036689,-500.0,0.00016438,2]
[333965250,1722651036699,-500.0,0.00016438,2]
[333965251,1722651036708,-500.0,0.00016438,2]
[333965252,1722651036719,-1083.61,0.00016438,2]
[333965253,1722651036728,-818.78,0.00016438,2]
[333965254,1722651036737,-500.0,0.00016438,2]
[333965255,1722651036747,-536.22507348,0.00016438,2]
[333965256,1722651036758,-500.0,0.00016438,2]
[333965257,1722651036768,-500.0,0.00016438,2]
[333965258,1722651036778,-500.0,0.00016438,2]
[333965259,1722651036787,-500.0,0.00016438,2]
[333965260,1722651036797,-557.05,0.00016438,2]
[333965261,1722651036807,-500.0,0.00016438,2]
[333965262,1722651036816,-783.6,0.00016438,2]
[333965263,1722651036825,-720.07,0.00016438,2]
[333965264,1722651036835,-586.09,0.00016438,2]
[333965265,1722651036845,-500.0,0.00016438,2]
[333965266,1722651036855,-500.0,0.00016438,2]
[333965267,1722651036864,-1062.03,0.00016438,2]
[333965268,1722651036873,-500.0,0.00016438,2]
[333965269,1722651036884,-500.0,0.00016438,2]
[333965270,1722651036894,-500.0,0.00016438,2]
[333965271,1722651036903,-1407.4,0.00016438,2]
[333965272,1722651036913,-500.0,0.00016438,2]
[333965273,1722651036922,-773.3,0.00016438,2]
[333965274,1722651036932,-500.0,0.00016438,2]
[333965275,1722651036941,-500.0,0.00016438,2]
[333965276,1722651036950,-500.0,0.00016438,2]
[333965277,1722651036961,-500.0,0.00016438,2]
[333965278,1722651036971,-500.0,0.00016438,2]
[333965279,1722651036980,-556.21,0.00016438,2]
[333965280,1722651036990,-500.0,0.00016438,2]
[333965281,1722651036999,-500.0,0.00016438,2]
[333965282,1722651037008,-500.0,0.00016438,2]
[333965283,1722651037018,-576.3,0.00016438,2]
[333965284,1722651037027,-1453.56,0.00016438,2]
[333965285,1722651037037,-500.0,0.00016438,2]
[333965286,1722651037046,-500.0,0.00016438,2]
[333965287,1722651037055,-500.0,0.00016438,2]
[333965288,1722651037066,-500.0,0.00016438,2]
[333965289,1722651037075,-500.0,0.00016438,2]
[333965290,1722651037172,-500.0,0.00016438,2]
[333965291,1722651037182,-566.04,0.00016438,2]
[333965292,1722651037191,-502.48,0.00016438,2]
[333965293,1722651037201,-500.0,0.00016438,2]
[333965294,1722651037210,-638.09298334,0.00016438,2]
[333965295,1722651037219,-503.68,0.00016438,2]
[333965296,1722651037228,-604.62,0.00016438,2]
[333965297,1722651037238,-500.0,0.00016438,2]
[333965298,1722651037247,-500.0,0.00016438,2]
[333965299,1722651037256,-989.64,0.00016438,2]
[333965300,1722651037265,-500.0,0.00016438,2]
[333965301,1722651037275,-1296.51,0.00016438,2]
[333965302,1722651037284,-944.97,0.00016438,2]
[333965303,1722651037293,-1636.9,0.00016438,2]
[333965304,1722651037302,-500.0,0.00016438,2]
[333965305,1722651037311,-500.0,0.00016438,2]
[333965306,1722651037320,-987.93,0.00016438,2]
[333965307,1722651037329,-500.0,0.00016438,2]
[333965308,1722651037338,-500.0,0.00016438,2]
[333965309,1722651037348,-500.0,0.00016438,2]
[333965310,1722651037357,-818.58,0.00016438,2]
[333965311,1722651037365,-500.0,0.00016438,2]
[333965312,1722651037374,-665.99,0.00016438,2]
[333965313,1722651037383,-1211.6,0.00016438,2]
[333965314,1722651037393,-500.0,0.00016438,2]
[333965315,1722651037403,-500.0,0.00016438,2]
[333965316,1722651037413,-624.91,0.00016438,2]
[333965317,1722651037423,-500.0,0.00016438,2]
[333965318,1722651037434,-581.89,0.00016438,2]
[333965319,1722651037445,-500.0,0.00016438,2]
[333965320,1722651037454,-500.0,0.00016438,2]
[333965321,1722651037463,-1055.76,0.00016438,2]
[333965322,1722651037473,-620.03,0.00016438,2]
[333965323,1722651037482,-500.0,0.00016438,2]
[333965324,1722651037491,-200.0,0.00016438,2]
[333965325,1722651037500,-1645.77,0.00016438,2]
[333965326,1722651037509,-865.01,0.00016438,2]
[333965327,1722651037518,-500.0,0.00016438,2]
[333965328,1722651037527,-500.0,0.00016438,2]
[333965329,1722651037536,-500.0,0.00016438,2]
[333965330,1722651037545,-500.0,0.00016438,2]
[333965331,1722651037555,-500.0,0.00016438,2]
[333965332,1722651037564,-500.0,0.00016438,2]
[333965333,1722651037574,-500.0,0.00016438,2]
[333965334,1722651037584,-596.17,0.00016438,2]
[333965335,1722651037593,-1449.05,0.00016438,2]
[333965336,1722651037603,-527.57,0.00016438,2]
[333965337,1722651037612,-500.0,0.00016438,2]
[333965338,1722651037621,-500.0,0.00016438,2]
[333965339,1722651037630,-500.0,0.00016438,2]
[333965340,1722651037639,-500.0,0.00016438,2]
[333965341,1722651037648,-1853.08,0.00016438,2]
[333965342,1722651037657,-500.0,0.00016438,2]
[333965343,1722651037667,-500.0,0.00016438,2]
[333965344,1722651037676,-690.06,0.00016438,2]
[333965345,1722651037685,-500.0,0.00016438,2]
[333965346,1722651037695,-1244.28,0.00016438,2]
[333965347,1722651037704,-500.0,0.00016438,2]
[333965348,1722651037714,-500.0,0.00016438,2]
[333965349,1722651037723,-500.0,0.00016438,2]
[333965350,1722651037732,-597.13,0.00016438,2]
[333965351,1722651037741,-900.1,0.00016438,2]
[333965352,1722651037751,-545.56,0.00016438,2]
[333965353,1722651037764,-500.0,0.00016438,2]
[333965354,1722651037774,-581.4,0.00016438,2]
[333965355,1722651037783,-500.0,0.00016438,2]
[333965356,1722651037792,-500.0,0.00016438,2]
[333965357,1722651037803,-500.0,0.00016438,2]
[333965358,1722651037812,-500.0,0.00016438,2]
[333965359,1722651037821,-500.0,0.00016438,2]
[333965360,1722651037831,-564.41,0.00016438,2]
[333965361,1722651037840,-500.0,0.00016438,2]
[333965362,1722651037851,-1004.46,0.00016438,2]
[333965365,1722651037860,-660.08,0.00016438,2]
[333965366,1722651037871,-500.0,0.00016438,2]
[333965367,1722651037881,-764.93,0.00016438,2]
[333965368,1722651037890,-500.0,0.00016438,2]
[333965369,1722651037900,-500.0,0.00016438,2]
[333965370,1722651037910,-500.0,0.00016438,2]
[333965371,1722651037920,-906.28,0.00016438,2]
[333965372,1722651037928,-500.0,0.00016438,2]
[333965373,1722651037938,-994.27,0.00016438,2]
[333965374,1722651037947,-500.0,0.00016438,2]
[333965375,1722651037957,-555.04,0.00016438,2]
[333965376,1722651037969,-822.72,0.00016438,2]
[333965377,1722651037979,-500.0,0.00016438,2]
[333965378,1722651037988,-676.25,0.00016438,2]
[333965379,1722651037998,-500.0,0.00016438,2]
[333965380,1722651038007,-945.6,0.00016438,2]
[333965381,1722651038016,-500.0,0.00016438,2]
[333965382,1722651038025,-637.84,0.00016438,2]
[333965383,1722651038035,-500.0,0.00016438,2]
[333965384,1722651038045,-565.72,0.00016438,2]
[333965385,1722651038055,-649.9,0.00016438,2]
[333965386,1722651038064,-1283.74,0.00016438,2]
[333965387,1722651038073,-500.0,0.00016438,2]
[333965388,1722651038083,-500.0,0.00016438,2]
[333965389,1722651038092,-500.0,0.00016438,2]
[333965390,1722651038101,-937.4,0.00016438,2]
[333965391,1722651038110,-756.75,0.00016438,2]
[333965392,1722651038120,-1446.04,0.00016438,2]
[333965393,1722651038129,-510.01,0.00016438,2]